[Event "Titled Tuesday Blitz June 1 2021"]
[White "Korchmar, Vasiliy"]
[Black "Kollars, Dmitrij"]
[WhiteFideId "24131750"]
[BlackFideId "12909572"]
[WhiteElo "2370"]
[BlackElo "2576"]
[Result "1-0"]
[Round "06"]
[TimeControl "180+1"]
[Date "2021.06.01"]
[WhiteClock "0:00:05"]
[BlackClock "0:00:02"]

1. d4 {[%clk 0:03:00]}  Nf6 {[%clk 0:02:59]} 2. c4 {[%clk 0:03:01]}  e6 {[%clk 0:02:59]} 3. g3 {[%clk 0:03:00]}  c5 {[%clk 0:02:58]} 4. d5 {[%clk 0:03:00]}  exd5 {[%clk 0:02:59]} 5. cxd5 {[%clk 0:03:00]}  d6 {[%clk 0:03:00]} 6. Nc3 {[%clk 0:03:01]}  g6 {[%clk 0:03:00]} 7. Bg2 {[%clk 0:03:02]}  Bg7 {[%clk 0:03:01]} 8. Nf3 {[%clk 0:03:02]}  O-O {[%clk 0:03:02]} 9. O-O {[%clk 0:03:03]}  Re8 {[%clk 0:03:03]} 10. Bf4 {[%clk 0:03:03]}  Bf5 {[%clk 0:03:02]} 11. Bg5 {[%clk 0:03:02]}  a6 {[%clk 0:02:57]} 12. a4 {[%clk 0:03:02]}  Qb6 {[%clk 0:02:48]} 13. Nd2 {[%clk 0:02:48]}  Qxb2 {[%clk 0:02:33]} 14. Qc1 {[%clk 0:02:48]}  Qxc1 {[%clk 0:02:28]} 15. Rfxc1 {[%clk 0:02:49]}  h6 {[%clk 0:01:50]} 16. Bf4 {[%clk 0:02:35]}  Rd8 {[%clk 0:01:44]} 17. e4 {[%clk 0:02:27]}  g5 {[%clk 0:01:38]} 18. Bxd6 {[%clk 0:02:10]}  Rxd6 {[%clk 0:01:39]} 19. exf5 {[%clk 0:02:09]}  Nbd7 {[%clk 0:01:32]} 20. Nc4 {[%clk 0:02:05]}  Ne8 {[%clk 0:01:30]} 21. Rab1 {[%clk 0:01:43]}  Rb8 {[%clk 0:01:06]} 22. Nxd6 {[%clk 0:01:31]}  Nxd6 {[%clk 0:01:07]} 23. Ne4 {[%clk 0:01:31]}  Nxe4 {[%clk 0:01:08]} 24. Bxe4 {[%clk 0:01:32]}  b5 {[%clk 0:01:08]} 25. axb5 {[%clk 0:01:27]}  axb5 {[%clk 0:01:09]} 26. d6 {[%clk 0:01:24]}  Rb6 {[%clk 0:01:09]} 27. Rd1 {[%clk 0:01:11]}  Bd4 {[%clk 0:01:08]} 28. Bd3 {[%clk 0:01:07]}  b4 {[%clk 0:01:06]} 29. Kg2 {[%clk 0:00:45]}  Rxd6 {[%clk 0:01:04]} 30. f4 {[%clk 0:00:45]}  gxf4 {[%clk 0:01:02]} 31. gxf4 {[%clk 0:00:46]}  Nb6 {[%clk 0:00:58]} 32. Kf3 {[%clk 0:00:40]}  Kf8 {[%clk 0:00:56]} 33. h4 {[%clk 0:00:36]}  Rd8 {[%clk 0:00:54]} 34. h5 {[%clk 0:00:28]}  Ra8 {[%clk 0:00:53]} 35. Kg4 {[%clk 0:00:15]}  Kg7 {[%clk 0:00:49]} 36. Be4 {[%clk 0:00:12]}  Ra3 {[%clk 0:00:46]} 37. Rxb4 {[%clk 0:00:11]}  cxb4 {[%clk 0:00:25]} 38. Rxd4 {[%clk 0:00:10]}  b3 {[%clk 0:00:25]} 39. f6+ {[%clk 0:00:10]}  Kxf6 {[%clk 0:00:22]} 40. Rd6+ {[%clk 0:00:10]}  Ke7 {[%clk 0:00:22]} 41. Rxb6 {[%clk 0:00:11]}  Ra1 {[%clk 0:00:16]} 42. Rxb3 {[%clk 0:00:11]}  Rg1+ {[%clk 0:00:16]} 43. Rg3 {[%clk 0:00:10]}  Re1 {[%clk 0:00:15]} 44. Bf3 {[%clk 0:00:10]}  Kf6 {[%clk 0:00:16]} 45. Rg2 {[%clk 0:00:10]}  Rc1 {[%clk 0:00:14]} 46. Rb2 {[%clk 0:00:09]}  Rg1+ {[%clk 0:00:14]} 47. Bg2 {[%clk 0:00:09]}  Kg7 {[%clk 0:00:14]} 48. Kg3 {[%clk 0:00:08]}  Re1 {[%clk 0:00:14]} 49. Bf3 {[%clk 0:00:08]}  Rg1+ {[%clk 0:00:14]} 50. Kf2 {[%clk 0:00:08]}  Rc1 {[%clk 0:00:15]} 51. Rb4 {[%clk 0:00:08]}  Rc2+ {[%clk 0:00:15]} 52. Kg3 {[%clk 0:00:08]}  Rc1 {[%clk 0:00:15]} 53. Re4 {[%clk 0:00:08]}  Rc7 {[%clk 0:00:15]} 54. Re5 {[%clk 0:00:08]}  Rd7 {[%clk 0:00:15]} 55. Rd5 {[%clk 0:00:08]}  Rc7 {[%clk 0:00:15]} 56. Bg4 {[%clk 0:00:09]}  Rc3+ {[%clk 0:00:15]} 57. Kh4 {[%clk 0:00:09]}  Rc1 {[%clk 0:00:15]} 58. Rd7 {[%clk 0:00:08]}  Rf1 {[%clk 0:00:15]} 59. Kg3 {[%clk 0:00:08]}  Rg1+ {[%clk 0:00:14]} 60. Kf3 {[%clk 0:00:08]}  Rf1+ {[%clk 0:00:15]} 61. Ke4 {[%clk 0:00:07]}  Rg1 {[%clk 0:00:15]} 62. Kf5 {[%clk 0:00:08]}  Rb1 {[%clk 0:00:13]} 63. Bf3 {[%clk 0:00:07]}  Rb6 {[%clk 0:00:09]} 64. Bd5 {[%clk 0:00:07]}  Rb5 {[%clk 0:00:07]} 65. Rxf7+ {[%clk 0:00:06]}  Kh8 {[%clk 0:00:07]} 66. Rd7 {[%clk 0:00:06]}  Rb6 {[%clk 0:00:07]} 67. Ke5 {[%clk 0:00:06]}  Rb4 {[%clk 0:00:06]} 68. Be4 {[%clk 0:00:05]}  Rb6 {[%clk 0:00:05]} 69. Rd6 {[%clk 0:00:05]}  Rb5+ {[%clk 0:00:05]} 70. Bd5 {[%clk 0:00:05]}  Kg7 {[%clk 0:00:05]} 71. Rg6+ {[%clk 0:00:05]}  Kh7 {[%clk 0:00:05]} 72. Re6 {[%clk 0:00:05]}  Kg7 {[%clk 0:00:05]} 73. f5 {[%clk 0:00:05]}  Rb2 {[%clk 0:00:04]} 74. Rg6+ {[%clk 0:00:05]}  Kh7 {[%clk 0:00:04]} 75. Rd6 {[%clk 0:00:06]}  Kg7 {[%clk 0:00:04]} 76. Rd7+ {[%clk 0:00:06]}  Kf8 {[%clk 0:00:05]} 77. Rf7+ {[%clk 0:00:06]}  Ke8 {[%clk 0:00:04]} 78. Rh7 {[%clk 0:00:06]}  Rb6 {[%clk 0:00:03]} 79. Be6 {[%clk 0:00:06]}  Kf8 {[%clk 0:00:02]} 80. Kf6 {[%clk 0:00:05]} 1-0


[Site "https://www.chess.com"]

[Event "Titled Tuesday Blitz June 1 2021"]
[White "Kukhmazov, Arsen"]
[Black "tapu2"]
[WhiteFideId "24108260"]
[WhiteElo "2453"]
[BlackElo "2656"]
[Result "1-0"]
[Round "06"]
[TimeControl "180+1"]
[Date "2021.06.01"]
[WhiteClock "0:00:57"]
[BlackClock "0:00:48"]

1. d4 {[%clk 0:03:00]}  Nf6 {[%clk 0:02:59]} 2. c4 {[%clk 0:03:01]}  e6 {[%clk 0:02:58]} 3. Nf3 {[%clk 0:03:01]}  d5 {[%clk 0:02:56]} 4. g3 {[%clk 0:02:56]}  Bb4+ {[%clk 0:02:55]} 5. Bd2 {[%clk 0:02:56]}  a5 {[%clk 0:02:56]} 6. Bg2 {[%clk 0:02:56]}  O-O {[%clk 0:02:55]} 7. O-O {[%clk 0:02:56]}  dxc4 {[%clk 0:02:56]} 8. Qc2 {[%clk 0:02:56]}  Bxd2 {[%clk 0:02:56]} 9. Qxd2 {[%clk 0:02:56]}  b5 {[%clk 0:02:57]} 10. a4 {[%clk 0:02:53]}  c6 {[%clk 0:02:56]} 11. Nc3 {[%clk 0:01:50]}  b4 {[%clk 0:02:46]} 12. Nd1 {[%clk 0:01:50]}  Ba6 {[%clk 0:02:36]} 13. Qc2 {[%clk 0:01:48]}  Nbd7 {[%clk 0:02:34]} 14. Ne3 {[%clk 0:01:48]}  c5 {[%clk 0:02:30]} 15. Rfd1 {[%clk 0:01:40]}  Rc8 {[%clk 0:02:22]} 16. d5 {[%clk 0:01:27]}  exd5 {[%clk 0:02:18]} 17. Nxd5 {[%clk 0:01:28]}  Nxd5 {[%clk 0:02:18]} 18. Rxd5 {[%clk 0:01:29]}  Qe7 {[%clk 0:02:13]} 19. Rad1 {[%clk 0:01:18]}  Nf6 {[%clk 0:02:09]} 20. Rd6 {[%clk 0:01:18]}  Bb7 {[%clk 0:01:22]} 21. Qxc4 {[%clk 0:01:16]}  Rcd8 {[%clk 0:01:14]} 22. Rxd8 {[%clk 0:01:07]}  Rxd8 {[%clk 0:01:15]} 23. Rxd8+ {[%clk 0:01:08]}  Qxd8 {[%clk 0:01:15]} 24. Qxc5 {[%clk 0:01:09]}  Qd1+ {[%clk 0:01:11]} 25. Bf1 {[%clk 0:01:08]}  Qxa4 {[%clk 0:01:03]} 26. Ne5 {[%clk 0:01:00]}  g6 {[%clk 0:00:49]} 27. Qe7 {[%clk 0:00:57]}  Qe8 {[%clk 0:00:48]} 28. Qxf6 {[%clk 0:00:57]} 1-0


[Site "https://www.chess.com"]

[Event "Titled Tuesday Blitz June 1 2021"]
[White "Le, Tuan Minh"]
[Black "Blohberger, Felix"]
[WhiteFideId "12401153"]
[BlackFideId "1632051"]
[WhiteElo "2450"]
[BlackElo "2434"]
[Result "1-0"]
[Round "06"]
[TimeControl "180+1"]
[Date "2021.06.01"]
[WhiteClock "0:00:15"]
[BlackClock "0:00:02"]

1. d4 {[%clk 0:03:00]}  Nf6 {[%clk 0:02:58]} 2. Nf3 {[%clk 0:03:00]}  d5 {[%clk 0:02:56]} 3. Bf4 {[%clk 0:03:00]}  c6 {[%clk 0:02:52]} 4. e3 {[%clk 0:03:00]}  Bf5 {[%clk 0:02:50]} 5. c4 {[%clk 0:02:59]}  e6 {[%clk 0:02:49]} 6. Nc3 {[%clk 0:02:59]}  Nbd7 {[%clk 0:02:49]} 7. Be2 {[%clk 0:02:57]}  Be7 {[%clk 0:02:49]} 8. h3 {[%clk 0:02:54]}  h6 {[%clk 0:02:48]} 9. O-O {[%clk 0:02:53]}  O-O {[%clk 0:02:48]} 10. Qb3 {[%clk 0:02:52]}  Qc8 {[%clk 0:02:47]} 11. Rac1 {[%clk 0:02:52]}  a5 {[%clk 0:02:45]} 12. a3 {[%clk 0:02:51]}  Re8 {[%clk 0:02:33]} 13. cxd5 {[%clk 0:02:45]}  exd5 {[%clk 0:02:33]} 14. Nb5 {[%clk 0:02:42]}  Rf8 {[%clk 0:02:23]} 15. Nd6 {[%clk 0:02:17]}  Bxd6 {[%clk 0:02:22]} 16. Bxd6 {[%clk 0:02:18]}  Re8 {[%clk 0:02:22]} 17. Rfe1 {[%clk 0:02:16]}  Ne4 {[%clk 0:02:21]} 18. Bh2 {[%clk 0:02:15]}  Nf8 {[%clk 0:02:15]} 19. Ne5 {[%clk 0:02:14]}  Ng6 {[%clk 0:02:12]} 20. Nd3 {[%clk 0:01:47]}  Nh4 {[%clk 0:02:02]} 21. Qd1 {[%clk 0:01:39]}  g5 {[%clk 0:01:50]} 22. Bf1 {[%clk 0:01:23]}  a4 {[%clk 0:01:31]} 23. f3 {[%clk 0:01:07]}  Nf6 {[%clk 0:01:28]} 24. Nc5 {[%clk 0:01:07]}  h5 {[%clk 0:00:57]} 25. e4 {[%clk 0:01:01]}  dxe4 {[%clk 0:00:52]} 26. fxe4 {[%clk 0:00:59]}  Nxe4 {[%clk 0:00:50]} 27. Qxh5 {[%clk 0:00:42]}  Bg6 {[%clk 0:00:45]} 28. Nxe4 {[%clk 0:00:26]}  Bxh5 {[%clk 0:00:38]} 29. Nf6+ {[%clk 0:00:26]}  Kg7 {[%clk 0:00:34]} 30. Nxe8+ {[%clk 0:00:26]}  Qxe8 {[%clk 0:00:28]} 31. Rxe8 {[%clk 0:00:25]}  Rxe8 {[%clk 0:00:28]} 32. Bg3 {[%clk 0:00:17]}  Nf5 {[%clk 0:00:26]} 33. Bf2 {[%clk 0:00:17]}  Rd8 {[%clk 0:00:15]} 34. g4 {[%clk 0:00:16]}  Nxd4 {[%clk 0:00:10]} 35. Bxd4+ {[%clk 0:00:13]}  Rxd4 {[%clk 0:00:09]} 36. gxh5 {[%clk 0:00:14]}  Kh6 {[%clk 0:00:08]} 37. Rc4 {[%clk 0:00:13]}  Rxc4 {[%clk 0:00:06]} 38. Bxc4 {[%clk 0:00:14]}  Kxh5 {[%clk 0:00:04]} 39. Bxf7+ {[%clk 0:00:14]}  Kh4 {[%clk 0:00:04]} 40. Be6 {[%clk 0:00:15]}  Kg3 {[%clk 0:00:05]} 41. Kf1 {[%clk 0:00:14]}  Kf3 {[%clk 0:00:05]} 42. Ke1 {[%clk 0:00:15]}  Ke3 {[%clk 0:00:06]} 43. Bc8 {[%clk 0:00:15]}  b6 {[%clk 0:00:05]} 44. Bd7 {[%clk 0:00:15]}  Kd3 {[%clk 0:00:02]} 45. Kd1 {[%clk 0:00:14]}  b5 {[%clk 0:00:01]} 46. Bxc6 {[%clk 0:00:15]}  Kc4 {[%clk 0:00:02]} 47. Kc2 {[%clk 0:00:15]} 1-0


[Site "https://www.chess.com"]

[Event "Titled Tuesday Blitz June 1 2021"]
[White "Lovkov, Roman"]
[Black "Ibrahimli, Murad"]
[WhiteFideId "4157389"]
[BlackFideId "13410229"]
[WhiteElo "2387"]
[BlackElo "2109"]
[Result "0-1"]
[Round "06"]
[TimeControl "180+1"]
[Date "2021.06.01"]
[WhiteClock "0:00:03"]
[BlackClock "0:00:59"]

1. e4 {[%clk 0:03:00]}  c5 {[%clk 0:02:59]} 2. c3 {[%clk 0:03:00]}  d5 {[%clk 0:02:58]} 3. exd5 {[%clk 0:03:01]}  Qxd5 {[%clk 0:02:59]} 4. Nf3 {[%clk 0:03:01]}  g6 {[%clk 0:02:58]} 5. Na3 {[%clk 0:03:00]}  Bg7 {[%clk 0:02:55]} 6. Bc4 {[%clk 0:03:00]}  Qd8 {[%clk 0:02:50]} 7. O-O {[%clk 0:02:59]}  Nf6 {[%clk 0:02:49]} 8. d4 {[%clk 0:02:59]}  cxd4 {[%clk 0:02:49]} 9. Nb5 {[%clk 0:02:58]}  a6 {[%clk 0:02:45]} 10. Nbxd4 {[%clk 0:02:57]}  O-O {[%clk 0:02:45]} 11. Re1 {[%clk 0:02:53]}  b5 {[%clk 0:02:44]} 12. Bb3 {[%clk 0:02:53]}  Bb7 {[%clk 0:02:44]} 13. a4 {[%clk 0:02:53]}  bxa4 {[%clk 0:02:42]} 14. Rxa4 {[%clk 0:02:52]}  Nbd7 {[%clk 0:02:37]} 15. Ra3 {[%clk 0:02:34]}  Nc5 {[%clk 0:02:34]} 16. Ba2 {[%clk 0:02:22]}  a5 {[%clk 0:02:22]} 17. Ne5 {[%clk 0:02:18]}  e6 {[%clk 0:02:04]} 18. Qe2 {[%clk 0:01:46]}  Nd5 {[%clk 0:01:56]} 19. Nec6 {[%clk 0:01:30]}  Qd7 {[%clk 0:01:45]} 20. Bxd5 {[%clk 0:01:24]}  exd5 {[%clk 0:01:43]} 21. Qb5 {[%clk 0:01:21]}  Ne6 {[%clk 0:01:22]} 22. Nxa5 {[%clk 0:01:09]}  Qxb5 {[%clk 0:01:18]} 23. Nxb5 {[%clk 0:01:10]}  Ba6 {[%clk 0:01:18]} 24. Nd6 {[%clk 0:00:48]}  Rfd8 {[%clk 0:01:07]} 25. Nab7 {[%clk 0:00:42]}  Rd7 {[%clk 0:01:05]} 26. Nxf7 {[%clk 0:00:04]}  Kxf7 {[%clk 0:01:01]} 27. Rxe6 {[%clk 0:00:05]}  Bxb7 {[%clk 0:01:01]} 28. Rxa8 {[%clk 0:00:04]}  Bxa8 {[%clk 0:01:01]} 29. Ra6 {[%clk 0:00:04]}  Bb7 {[%clk 0:01:01]} 30. Ra7 {[%clk 0:00:05]}  d4 {[%clk 0:01:01]} 31. c4 {[%clk 0:00:03]}  d3 {[%clk 0:01:01]} 32. Bd2 {[%clk 0:00:03]}  Bxb2 {[%clk 0:00:59]} 33. f3 {[%clk 0:00:03]}  Bd4+ {[%clk 0:00:59]} 0-1


[Site "https://www.chess.com"]

[Event "Titled Tuesday Blitz June 1 2021"]
[White "Makhnev, Denis"]
[Black "Dang, Hoang Son"]
[WhiteFideId "13707647"]
[BlackFideId "12402435"]
[WhiteElo "2549"]
[BlackElo "2248"]
[Result "1/2-1/2"]
[Round "06"]
[TimeControl "180+1"]
[Date "2021.06.01"]
[WhiteClock "0:00:05"]
[BlackClock "0:00:14"]

1. d4 {[%clk 0:03:00]}  Nf6 {[%clk 0:03:00]} 2. c4 {[%clk 0:03:01]}  g6 {[%clk 0:03:00]} 3. g3 {[%clk 0:03:01]}  Bg7 {[%clk 0:03:01]} 4. Bg2 {[%clk 0:03:01]}  O-O {[%clk 0:03:02]} 5. Nc3 {[%clk 0:03:02]}  d6 {[%clk 0:03:02]} 6. Nf3 {[%clk 0:03:02]}  Nc6 {[%clk 0:03:02]} 7. O-O {[%clk 0:03:03]}  Rb8 {[%clk 0:03:03]} 8. Bg5 {[%clk 0:02:56]}  a6 {[%clk 0:03:00]} 9. Rc1 {[%clk 0:02:56]}  Bd7 {[%clk 0:02:57]} 10. e3 {[%clk 0:01:24]}  h6 {[%clk 0:02:47]} 11. Bxf6 {[%clk 0:01:24]}  Bxf6 {[%clk 0:02:48]} 12. a3 {[%clk 0:01:18]}  Bg7 {[%clk 0:02:43]} 13. b4 {[%clk 0:01:17]}  e5 {[%clk 0:02:42]} 14. b5 {[%clk 0:01:12]}  Na5 {[%clk 0:02:33]} 15. Qa4 {[%clk 0:01:09]}  b6 {[%clk 0:02:29]} 16. dxe5 {[%clk 0:01:09]}  dxe5 {[%clk 0:02:24]} 17. Rfd1 {[%clk 0:01:09]}  Qc8 {[%clk 0:02:06]} 18. Nd5 {[%clk 0:01:03]}  Re8 {[%clk 0:02:06]} 19. Qb4 {[%clk 0:01:03]}  c5 {[%clk 0:01:25]} 20. bxc6 {[%clk 0:00:30]}  Nxc6 {[%clk 0:01:25]} 21. Qd6 {[%clk 0:00:19]}  Bg4 {[%clk 0:01:06]} 22. h3 {[%clk 0:00:14]}  Re6 {[%clk 0:01:04]} 23. Qc7 {[%clk 0:00:14]}  Bxf3 {[%clk 0:00:59]} 24. Bxf3 {[%clk 0:00:15]}  e4 {[%clk 0:00:58]} 25. Qxc8+ {[%clk 0:00:13]}  Rxc8 {[%clk 0:00:57]} 26. Be2 {[%clk 0:00:10]}  Ne5 {[%clk 0:00:55]} 27. Rb1 {[%clk 0:00:07]}  Nxc4 {[%clk 0:00:36]} 28. Rdc1 {[%clk 0:00:07]}  b5 {[%clk 0:00:33]} 29. a4 {[%clk 0:00:07]}  Rd8 {[%clk 0:00:29]} 30. axb5 {[%clk 0:00:08]}  axb5 {[%clk 0:00:25]} 31. Rxb5 {[%clk 0:00:06]}  Ne5 {[%clk 0:00:20]} 32. Nf4 {[%clk 0:00:04]}  Red6 {[%clk 0:00:20]} 33. h4 {[%clk 0:00:05]}  h5 {[%clk 0:00:20]} 34. Kf1 {[%clk 0:00:05]}  Bf6 {[%clk 0:00:18]} 35. Rcb1 {[%clk 0:00:03]}  Kg7 {[%clk 0:00:18]} 36. Rb7 {[%clk 0:00:04]}  R6d7 {[%clk 0:00:19]} 37. Rxd7 {[%clk 0:00:03]}  Rxd7 {[%clk 0:00:19]} 38. Rb6 {[%clk 0:00:03]}  Nf3 {[%clk 0:00:18]} 39. Ra6 {[%clk 0:00:03]}  Be5 {[%clk 0:00:17]} 40. Kg2 {[%clk 0:00:02]}  Ne1+ {[%clk 0:00:17]} 41. Kh3 {[%clk 0:00:02]}  Nf3 {[%clk 0:00:18]} 42. Bxf3 {[%clk 0:00:02]}  exf3 {[%clk 0:00:19]} 43. Kh2 {[%clk 0:00:03]}  Rd1 {[%clk 0:00:18]} 44. Ra2 {[%clk 0:00:02]}  Bc3 {[%clk 0:00:17]} 45. Nh3 {[%clk 0:00:02]}  Rf1 {[%clk 0:00:16]} 46. Ng5 {[%clk 0:00:01]}  Be1 {[%clk 0:00:16]} 47. Nxf3 {[%clk 0:00:01]}  Rxf2+ {[%clk 0:00:16]} 48. Rxf2 {[%clk 0:00:02]}  Bxf2 {[%clk 0:00:17]} 49. e4 {[%clk 0:00:03]}  Kf6 {[%clk 0:00:17]} 50. Kg2 {[%clk 0:00:03]}  Bb6 {[%clk 0:00:18]} 51. Kf1 {[%clk 0:00:03]}  Ke6 {[%clk 0:00:18]} 52. Kg2 {[%clk 0:00:03]}  f6 {[%clk 0:00:18]} 53. Kf1 {[%clk 0:00:02]}  Ba7 {[%clk 0:00:18]} 54. Ke2 {[%clk 0:00:02]}  Kd6 {[%clk 0:00:17]} 55. Kf1 {[%clk 0:00:03]}  Bb6 {[%clk 0:00:16]} 56. Ke2 {[%clk 0:00:03]}  Kc5 {[%clk 0:00:14]} 57. Kf1 {[%clk 0:00:03]}  Kc4 {[%clk 0:00:14]} 58. Ke2 {[%clk 0:00:04]}  Bc7 {[%clk 0:00:14]} 59. Kf2 {[%clk 0:00:02]}  Kd3 {[%clk 0:00:13]} 60. e5 {[%clk 0:00:02]}  Bxe5 {[%clk 0:00:13]} 61. Kg2 {[%clk 0:00:02]}  Ke3 {[%clk 0:00:13]} 62. Ng1 {[%clk 0:00:03]}  Bd6 {[%clk 0:00:12]} 63. Nh3 {[%clk 0:00:03]}  Be7 {[%clk 0:00:12]} 64. Nf4 {[%clk 0:00:03]}  g5 {[%clk 0:00:12]} 65. Nd5+ {[%clk 0:00:03]}  Ke4 {[%clk 0:00:12]} 66. Nxe7 {[%clk 0:00:04]}  Ke5 {[%clk 0:00:11]} 67. Nc6+ {[%clk 0:00:02]}  Ke4 {[%clk 0:00:11]} 68. Ne7 {[%clk 0:00:02]}  Ke5 {[%clk 0:00:11]} 69. Kf3 {[%clk 0:00:03]}  Ke6 {[%clk 0:00:10]} 70. Nc6 {[%clk 0:00:03]}  Kd5 {[%clk 0:00:09]} 71. Nd8 {[%clk 0:00:04]}  Ke5 {[%clk 0:00:09]} 72. Nf7+ {[%clk 0:00:04]}  Kf5 {[%clk 0:00:09]} 73. Nd6+ {[%clk 0:00:05]}  Ke5 {[%clk 0:00:09]} 74. Nc4+ {[%clk 0:00:06]}  Kd4 {[%clk 0:00:09]} 75. Ne3 {[%clk 0:00:05]}  Ke5 {[%clk 0:00:07]} 76. g4 {[%clk 0:00:06]}  hxg4+ {[%clk 0:00:07]} 77. Nxg4+ {[%clk 0:00:07]}  Kf5 {[%clk 0:00:07]} 78. h5 {[%clk 0:00:07]}  Ke6 {[%clk 0:00:08]} 79. h6 {[%clk 0:00:06]}  Kf7 {[%clk 0:00:08]} 80. h7 {[%clk 0:00:07]}  Kg7 {[%clk 0:00:08]} 81. Nxf6 {[%clk 0:00:07]}  Kh8 {[%clk 0:00:08]} 82. Kg4 {[%clk 0:00:08]}  Kg7 {[%clk 0:00:09]} 83. Kxg5 {[%clk 0:00:08]}  Kh8 {[%clk 0:00:10]} 84. Kf5 {[%clk 0:00:08]}  Kg7 {[%clk 0:00:11]} 85. Kg5 {[%clk 0:00:08]}  Kh8 {[%clk 0:00:12]} 86. Kf5 {[%clk 0:00:06]}  Kg7 {[%clk 0:00:12]} 87. Ke6 {[%clk 0:00:07]}  Kh8 {[%clk 0:00:13]} 88. Ke7 {[%clk 0:00:07]}  Kg7 {[%clk 0:00:14]} 89. Ke6 {[%clk 0:00:08]}  Kh8 {[%clk 0:00:14]} 90. Kf5 {[%clk 0:00:05]} 1/2-1/2


[Site "https://www.chess.com"]

[Event "Titled Tuesday Blitz June 1 2021"]
[White "Martinez Alcantara, Jose Eduardo"]
[Black "Tanenbaum, Zachary"]
[WhiteFideId "3805662"]
[BlackFideId "2060850"]
[WhiteElo "2690"]
[BlackElo "2165"]
[Result "1-0"]
[Round "06"]
[TimeControl "180+1"]
[Date "2021.06.01"]
[WhiteClock "0:00:24"]
[BlackClock "0:00:03"]

1. e4 {[%clk 0:03:00]}  e5 {[%clk 0:03:00]} 2. Nf3 {[%clk 0:03:00]}  Nc6 {[%clk 0:03:00]} 3. Bb5 {[%clk 0:02:58]}  a6 {[%clk 0:03:01]} 4. Ba4 {[%clk 0:02:58]}  d6 {[%clk 0:03:01]} 5. c3 {[%clk 0:02:58]}  Nf6 {[%clk 0:03:02]} 6. d3 {[%clk 0:02:55]}  Be7 {[%clk 0:03:02]} 7. O-O {[%clk 0:02:54]}  O-O {[%clk 0:03:02]} 8. Re1 {[%clk 0:02:53]}  b5 {[%clk 0:03:01]} 9. Bb3 {[%clk 0:02:52]}  Nb8 {[%clk 0:02:55]} 10. Nbd2 {[%clk 0:02:50]}  Nbd7 {[%clk 0:02:55]} 11. Nf1 {[%clk 0:02:50]}  Bb7 {[%clk 0:02:56]} 12. Bg5 {[%clk 0:02:49]}  Re8 {[%clk 0:02:43]} 13. h3 {[%clk 0:02:39]}  d5 {[%clk 0:02:42]} 14. Ng3 {[%clk 0:02:33]}  c5 {[%clk 0:02:33]} 15. Bxf6 {[%clk 0:01:56]}  Nxf6 {[%clk 0:02:23]} 16. Nxe5 {[%clk 0:01:55]}  Bd6 {[%clk 0:02:11]} 17. d4 {[%clk 0:01:44]}  Bxe5 {[%clk 0:01:14]} 18. dxe5 {[%clk 0:01:45]}  Rxe5 {[%clk 0:01:14]} 19. f4 {[%clk 0:01:39]}  Re8 {[%clk 0:01:14]} 20. e5 {[%clk 0:01:38]}  Ne4 {[%clk 0:01:14]} 21. Bxd5 {[%clk 0:01:03]}  Bxd5 {[%clk 0:00:27]} 22. Nxe4 {[%clk 0:01:02]}  Bxe4 {[%clk 0:00:24]} 23. Rxe4 {[%clk 0:01:02]}  f6 {[%clk 0:00:20]} 24. Qe2 {[%clk 0:00:57]}  Qe7 {[%clk 0:00:16]} 25. e6 {[%clk 0:00:54]}  f5 {[%clk 0:00:16]} 26. Re5 {[%clk 0:00:54]}  g6 {[%clk 0:00:16]} 27. Rd1 {[%clk 0:00:53]}  Rad8 {[%clk 0:00:15]} 28. Rdd5 {[%clk 0:00:48]}  Rxd5 {[%clk 0:00:13]} 29. Rxd5 {[%clk 0:00:48]}  c4 {[%clk 0:00:12]} 30. Re5 {[%clk 0:00:44]}  Rd8 {[%clk 0:00:12]} 31. Kh2 {[%clk 0:00:42]}  Rd3 {[%clk 0:00:11]} 32. Qf2 {[%clk 0:00:41]}  Kg7 {[%clk 0:00:07]} 33. Re2 {[%clk 0:00:38]}  Rd6 {[%clk 0:00:07]} 34. Qc5 {[%clk 0:00:35]}  Kg8 {[%clk 0:00:05]} 35. Qxd6 {[%clk 0:00:23]}  Qxd6 {[%clk 0:00:04]} 36. e7 {[%clk 0:00:23]}  Qxf4+ {[%clk 0:00:03]} 37. g3 {[%clk 0:00:24]} 1-0


[Site "https://www.chess.com"]